bitfinex-derivatives/quotes_ETHF0:USTF0_20240927
["timestamp","ask_amount","ask_price","bid_price","bid_amount"]
[1727417743246,0.3753,2664.1,2664.0,12.02213]
[1727417744552,6.8178,2664.5,2664.0,12.02213]
[1727417746057,0.3753,2664.2,2664.0,12.02213]
[1727417746266,6.8178,2664.5,2664.0,12.02213]
[1727417746267,0.3753,2664.1,2664.0,12.02213]
[1727417746464,0.37529,2664.2,2664.0,12.02213]
[1727417746664,0.3753,2664.1,2664.0,12.02213]
[1727417747162,0.37528,2664.3,2664.0,12.02213]
[1727417747358,3.2078,2664.5,2664.1,0.3786]
[1727417747754,0.37528,2664.3,2664.1,0.3786]
[1727417747953,3.2078,2664.5,2664.1,0.3786]
[1727417748157,3.2078,2664.6,2664.1,0.3786]
[1727417748461,0.37529,2664.2,2664.1,0.3786]
[1727417748765,0.3753,2664.1,2664.0,12.02213]
[1727417748957,0.753,2664.1,2664.0,12.02213]
[1727417749868,4.5066,2664.1,2664.0,12.02213]
[1727417750364,11.44486,2664.1,2664.0,12.02213]
[1727417750953,12.38312,2664.1,2664.0,11.0746]
[1727417751860,12.38312,2664.1,2662.9,0.01]
[1727417751861,11.06956,2664.1,2662.9,0.01]
[1727417752066,11.06956,2664.1,2662.9,3.2178]
[1727417752067,3.61,2663.6,2662.9,3.2178]
[1727417752366,0.4078,2663.5,2663.0,3.2078]
[1727417752562,0.4078,2663.5,2663.0,3.98885]
[1727417753158,0.4078,2663.5,2663.1,0.37544]
[1727417753353,0.4078,2663.5,2663.0,3.6134]
[1727417753765,0.78319,2663.5,2663.0,3.6134]
[1727417754066,0.4078,2663.5,2663.0,3.6134]
[1727417755167,0.4078,2663.5,2663.0,3.98885]
[1727417755663,0.4078,2663.5,2663.0,3.6134]
[1727417755870,3.2078,2663.9,2663.3,3.2078]
[1727417756166,3.58313,2663.9,2663.4,0.3758]
[1727417756566,0.3954,2664.0,2663.6,3.2078]
[1727417756758,0.77072,2664.0,2663.6,3.2078]
[1727417757160,0.37534,2663.9,2663.6,3.2078]
[1727417757866,0.77072,2664.0,2663.6,3.2078]
[1727417758163,0.37533,2663.9,2663.6,3.2078]
[1727417759266,0.37535,2663.8,2663.6,3.2078]
[1727417759662,0.37536,2663.7,2663.6,3.2078]
[1727417760467,3.30535,2663.8,2663.6,3.2078]
[1727417760668,2.93,2663.8,2663.6,3.2078]
[1727417760867,0.37536,2663.7,2663.6,3.2078]
[1727417761160,3.30535,2663.8,2663.6,3.2078]
[1727417761361,2.93,2663.8,2663.6,3.2078]
[1727417761664,0.37534,2663.9,2663.6,3.2078]
[1727417761865,3.3254,2664.0,2663.6,3.2078]
[1727417762367,3.70072,2664.0,2663.6,3.2078]
[1727417762577,0.3954,2664.0,2663.6,3.2078]
[1727417762772,0.77072,2664.0,2663.6,3.2078]
[1727417762960,0.37533,2663.9,2663.6,3.2078]
[1727417763165,0.37534,2663.8,2663.6,3.2078]
[1727417763368,0.37536,2663.7,2663.6,3.2078]
[1727417763669,0.37534,2663.9,2663.6,3.2078]
[1727417763970,6.1378,2664.4,2663.8,0.37534]
[1727417764166,2.93,2664.4,2663.9,0.3924]
[1727417764567,3.30526,2664.4,2663.9,3.6002]
[1727417764768,0.37529,2664.2,2663.9,0.3924]
[1727417764974,2.93,2664.1,2663.9,0.3924]
[1727417765570,3.30531,2664.1,2663.9,0.3924]
[1727417765867,0.37531,2664.0,2663.9,0.3924]
[1727417766271,0.37534,2663.8,2663.6,3.2078]
[1727417766474,0.3739,2663.9,2663.6,3.2078]
[1727417766773,3.3039,2663.9,2663.6,3.2078]
[1727417766965,3.3039,2663.9,2663.4,0.7875]
[1727417766966,2.93,2663.7,2663.4,0.7875]
[1727417767167,0.74923,2663.9,2663.4,1.16289]
[1727417767168,3.3039,2663.9,2663.4,1.16289]
[1727417767365,0.37536,2663.7,2663.4,0.7875]
[1727417767968,3.3039,2663.9,2663.4,0.7875]
[1727417768161,3.67924,2663.9,2663.4,0.7875]
[1727417768371,3.3039,2663.9,2663.4,0.7875]
[1727417768567,0.37538,2663.6,2663.4,0.3979]
[1727417768768,3.3039,2663.9,2663.4,0.3979]
[1727417768963,0.37535,2663.8,2663.4,0.3979]
[1727417769472,0.37537,2663.7,2663.4,0.3979]
[1727417770470,3.3039,2663.9,2663.4,0.3979]
[1727417770671,3.67924,2663.9,2663.4,0.3979]
[1727417771071,0.37534,2663.8,2663.4,0.3979]
[1727417771468,0.3739,2663.9,2663.6,3.2078]
[1727417771871,3.30531,2664.1,2663.6,3.5804]
[1727417772267,0.37531,2664.0,2663.6,3.5804]
[1727417772469,0.37533,2663.9,2663.6,3.5804]
[1727417772874,2.93,2664.1,2663.6,3.5804]
[1727417772875,0.37532,2664.0,2663.6,3.5804]
[1727417773071,3.30531,2664.1,2663.6,3.5804]
[1727417773377,0.37532,2664.0,2663.6,3.5804]
[1727417773778,3.30531,2664.1,2663.6,0.3726]
[1727417774371,0.37532,2664.0,2663.6,0.3726]
[1727417774572,0.37533,2663.9,2663.6,0.3726]
[1727417775172,0.37532,2664.0,2663.6,0.3726]
[1727417775373,0.37533,2663.9,2663.6,0.3726]
[1727417775873,0.37535,2663.8,2663.6,0.3726]
[1727417776272,2.93,2663.9,2663.6,0.3726]
[1727417776573,0.37535,2663.8,2663.4,0.3979]
[1727417776782,3.30534,2663.9,2663.5,3.2078]
[1727417776973,3.30531,2664.1,2663.6,0.37536]
[1727417777275,4.0583359,2664.8,2663.6,0.37536]
[1727417777276,2.93,2664.9,2664.0,2.93]
[1727417777578,0.3799,2665.0,2664.3,3.2078]
[1727417777781,0.3799,2665.0,2664.4,0.37525]
[1727417777976,0.3799,2665.0,2664.3,3.58307]
[1727417777977,0.37519,2664.9,2664.3,3.58307]
[1727417778177,2.93,2664.9,2664.3,3.2078]
[1727417778578,0.37521,2664.8,2664.3,3.2078]
[1727417778877,3.30519,2664.9,2664.3,3.2078]
[1727417779072,2.93,2664.9,2664.4,0.37526]
[1727417779274,3.58296,2665.1,2664.4,0.37525]
[1727417779469,3.2078,2665.1,2664.3,6.1378]
[1727417779676,0.37517,2665.0,2664.3,3.58306]
[1727417779881,0.37521,2664.8,2664.3,3.2078]
[1727417780483,3.3314,2665.0,2664.3,3.2078]
[1727417780679,0.37521,2664.8,2664.3,3.2078]
[1727417780879,0.37522,2664.7,2664.3,3.2078]
[1727417781276,2.93,2665.0,2664.3,3.2078]
[1727417781478,3.2078,2665.1,2664.3,3.2078]
[1727417781679,2.93,2665.2,2664.6,3.2078]
[1727417781877,3.30515,2665.2,2664.7,0.4079]
[1727417782382,0.37516,2665.1,2664.7,0.8012]
[1727417782580,0.37517,2665.0,2664.7,0.8012]
[1727417782885,2.93,2665.2,2664.7,0.8012]
[1727417783085,0.37516,2665.1,2664.7,0.8012]
[1727417784185,3.30515,2665.2,2664.7,0.8012]
[1727417784580,0.37516,2665.1,2664.7,0.8012]
[1727417785086,3.30515,2665.2,2664.7,0.8012]
[1727417785688,2.93,2665.2,2664.7,0.8012]
[1727417786080,3.30515,2665.2,2664.7,0.8012]
[1727417786278,0.37516,2665.1,2664.7,0.8012]
[1727417786481,2.93,2665.2,2664.7,0.8012]
[1727417786482,0.37517,2665.0,2664.7,0.8012]
[1727417786781,2.93,2664.9,2664.7,0.8012]
[1727417786979,0.37517,2665.1,2664.7,0.8012]
[1727417787389,0.37517,2665.1,2664.7,4.554]
[1727417787784,0.37517,2665.0,2664.7,0.8012]
[1727417788085,0.37519,2664.9,2664.7,0.8012]
[1727417788280,0.37519,2664.9,2664.7,0.4079]
[1727417788887,2.93,2665.0,2664.6,3.2078]
[1727417789083,1.34505,2665.3,2664.4,3.2078]
[1727417789084,0.37522,2664.7,2664.4,3.2078]
[1727417790091,0.37522,2664.7,2664.3,0.3948]
[1727417790480,3.3316,2664.8,2664.3,0.3948]
[1727417790781,0.37525,2664.5,2664.3,0.3948]
[1727417791578,0.37524,2664.6,2664.3,0.3948]
[1727417791786,0.3908,2664.7,2664.3,0.3948]
[1727417791787,0.37525,2664.5,2664.3,0.3948]
[1727417792583,0.3908,2664.7,2664.3,0.3948]
[1727417792785,0.37525,2664.5,2664.3,0.3948]
[1727417792979,0.3908,2664.7,2664.3,0.3948]
[1727417793191,0.37525,2664.5,2664.3,0.3948]
[1727417793487,2.93,2664.5,2664.1,3.2078]
[1727417793684,3.30528,2664.3,2664.1,3.2078]
[1727417794277,0.37529,2664.2,2664.1,3.2078]
[1727417795086,3.30528,2664.3,2664.1,3.2078]
[1727417795282,0.37529,2664.2,2664.1,3.2078]
[1727417796293,2.93,2664.3,2663.8,0.4026]
[1727417796294,0.37531,2664.1,2663.8,0.4026]
[1727417796591,0.7955,2664.1,2663.8,0.4026]
[1727417797084,3.58304,2664.6,2664.0,3.2078]
[1727417797284,1.87495,2666.4,2664.3,3.2078]
[1727417797285,0.3687,2664.7,2664.3,3.2078]
[1727417797479,0.37523,2664.6,2664.0,3.2078]
[1727417797684,0.37523,2664.6,2664.0,3.58311]
[1727417797885,0.74392,2664.7,2664.0,3.58311]
[1727417798089,0.74392,2664.7,2664.3,3.2078]
[1727417798287,0.74392,2664.7,2664.4,0.3985]
[1727417798789,0.37523,2664.6,2664.4,0.3985]
[1727417799094,0.37524,2664.6,2664.4,0.3985]
[1727417799882,0.3687,2664.7,2664.4,0.3985]
[1727417800292,0.74392,2664.7,2664.4,0.3985]
[1727417800782,2.7087,2664.7,2664.3,3.2078]
[1727417800981,2.7087,2664.7,2664.0,3.6022]
[1727417800982,0.37526,2664.5,2664.0,3.6022]
[1727417801197,0.37526,2664.4,2664.0,3.6022]
[1727417801393,2.34,2664.5,2664.0,0.3944]
[1727417801597,0.37529,2664.2,2664.0,0.3944]
[1727417802189,0.3858,2664.1,2664.0,0.3944]
[1727417802492,0.3858,2664.1,2663.6,4.50637]
[1727417802690,0.4002,2664.4,2663.7,6.9614]
[1727417802691,0.37528,2664.3,2663.7,6.9614]
[1727417802888,0.37528,2664.3,2663.8,0.3774]
[1727417803085,0.37529,2664.2,2663.8,0.3774]
[1727417803688,0.37529,2664.2,2663.8,4.131]
[1727417803892,0.37529,2664.2,2663.9,3.7536]
[1727417804199,0.37529,2664.2,2663.8,4.131]
[1727417804496,0.3753,2664.1,2663.7,3.2078]
[1727417805386,0.37528,2664.3,2663.7,3.2078]
[1727417805891,3.11547,2664.4,2663.8,3.2078]
[1727417806293,0.37527,2664.3,2663.8,3.2078]
[1727417806594,3.11546,2664.4,2663.7,3.58315]
[1727417806991,0.37527,2664.3,2663.7,3.58315]
[1727417807196,0.37529,2664.2,2663.7,3.2078]
[1727417807796,0.37528,2664.3,2663.7,3.2078]
[1727417807991,0.37531,2664.1,2663.6,0.3944]
[1727417808195,0.37531,2664.1,2663.7,3.2078]
[1727417808600,2.34,2664.2,2663.6,0.3944]
[1727417808802,0.37532,2664.0,2663.6,0.3944]
[1727417809101,0.3833,2663.9,2663.6,3.6022]
[1727417810604,0.37531,2664.1,2663.6,7.3566]
[1727417810905,0.37531,2664.1,2663.6,3.6022]
[1727417811795,0.37532,2664.0,2663.6,3.6022]
[1727417812197,0.3955,2664.3,2663.6,3.6022]
[1727417812492,0.3955,2664.3,2663.9,3.2078]
[1727417812493,0.37532,2664.0,2663.9,3.2078]
[1727417813705,0.37531,2664.1,2663.9,3.2078]
[1727417814199,0.37529,2664.2,2663.9,3.2078]
[1727417814402,0.37531,2664.1,2663.9,3.2078]
[1727417815003,0.37529,2664.2,2663.9,3.2078]
[1727417816103,0.77078,2664.3,2663.9,3.2078]
[1727417816506,0.77078,2664.3,2663.6,3.97756]
[1727417817007,2.34,2664.0,2663.6,0.3944]
[1727417817197,1.16774,2663.9,2663.6,0.3944]
[1727417817397,0.7924,2663.9,2663.6,0.3944]
[1727417818400,1.16773,2663.9,2663.6,0.3944]
[1727417819902,0.7924,2663.9,2663.6,0.3944]
[1727417823096,1.16774,2663.9,2663.6,0.3944]
[1727417823602,9.3022,2663.8,2662.9,3.2178]
[1727417823800,2.34,2663.1,2662.9,0.01]
[1727417824201,0.391,2663.0,2662.9,0.01]
[1727417824501,0.76645,2663.0,2662.9,0.01]
[1727417824702,0.391,2663.0,2662.9,0.01]
[1727417824899,0.7812,2663.0,2662.9,0.01]
[1727417825106,1.15665,2663.0,2662.9,0.01]
[1727417826010,0.7812,2663.0,2662.9,0.01]
[1727417826201,1.15665,2663.0,2662.9,0.01]
[1727417826711,4.91185,2663.0,2662.9,0.01]
[1727417830306,0.7812,2663.0,2662.9,0.01]
[1727417830514,1.15665,2663.0,2662.9,0.01]
[1727417830810,4.91185,2663.0,2662.9,0.01]
[1727417833409,10.91185,2663.0,2662.9,0.01]
[1727417834106,4.91185,2663.0,2662.9,0.01]
[1727417835118,1.15665,2663.0,2662.9,0.01]
[1727417835311,0.7812,2663.0,2662.9,0.01]
[1727417835510,1.15665,2663.0,2662.9,0.01]
[1727417836023,3.2078,2663.8,2662.9,9.7652]
[1727417836211,3.2078,2663.8,2663.0,0.3734]
[1727417836212,0.3919,2663.5,2663.0,0.3734]
[1727417836414,0.3919,2663.5,2663.0,1.1568]
[1727417836606,0.3919,2663.5,2663.1,3.2078]
[1727417837009,0.3919,2663.5,2663.1,3.58324]
[1727417837208,4.4568,2664.0,2663.4,3.2078]
[1727417837209,2.34,2663.9,2663.4,3.2078]
[1727417837410,2.34,2664.1,2663.8,3.2078]
[1727417837619,2.34,2664.1,2663.7,3.2078]
[1727417839011,2.7379,2664.3,2663.7,3.2078]
[1727417840922,2.7379,2664.3,2664.0,3.2078]
[1727417841112,2.7379,2664.3,2664.1,0.3973]
[1727417842819,2.34,2664.3,2664.1,0.3973]
[1727417843019,2.34,2664.3,2664.1,3.6051]
[1727417843318,2.34,2664.3,2664.1,0.3973]
[1727417848024,2.34,2667.1,2666.3,3.2078]
[1727417848217,3.2078,2667.3,2666.4,0.383]
[1727417848218,5.92265,2667.3,2666.4,0.383]
[1727417848522,5.92265,2667.3,2666.6,3.2078]
[1727417848831,0.37487,2667.2,2666.6,3.2078]
[1727417849020,5.5478,2667.3,2666.6,3.2078]
[1727417849718,0.37486,2667.2,2666.6,3.2078]
[1727417849913,5.5478,2667.3,2666.6,3.2078]
[1727417849914,5.92265,2667.3,2666.6,3.2078]
[1727417850816,5.5478,2667.3,2666.6,3.2078]
[1727417851416,5.92266,2667.3,2666.6,3.2078]
[1727417852120,5.92266,2667.3,2666.4,0.383]
[1727417852121,3.2078,2667.7,2667.0,3.2078]
[1727417852330,5.5478,2667.7,2667.0,3.2078]
[1727417852717,5.9226,2667.7,2667.0,3.2078]
[1727417853221,0.37481,2667.6,2667.0,3.2078]
[1727417853425,2.34,2667.5,2667.0,3.2078]
[1727417853623,2.71482,2667.5,2667.0,3.2078]
[1727417854019,2.34,2667.5,2667.0,3.2078]
[1727417854920,2.71482,2667.5,2667.0,3.2078]
[1727417855227,2.34,2667.5,2667.0,3.2078]
[1727417856520,2.71482,2667.5,2667.0,3.2078]
[1727417856719,2.34,2667.5,2667.0,3.2078]
[1727417857719,5.5478,2667.7,2667.0,3.2078]
[1727417858027,5.5478,2667.7,2667.3,3.2078]
[1727417858430,5.92259,2667.7,2667.3,3.2078]
[1727417858729,5.92259,2667.7,2667.0,3.2078]
[1727417858923,0.37482,2667.6,2667.0,3.2078]
[1727417859134,5.5478,2667.7,2667.0,3.2078]
[1727417859322,0.37482,2667.6,2667.0,3.2078]
[1727417860129,5.5478,2667.7,2667.0,3.2078]
[1727417860318,3.89148,2667.9,2667.3,3.2078]
[1727417860522,7.09928,2667.9,2667.3,3.2078]
[1727417861024,2.34,2667.7,2666.9,3.2078]
[1727417861231,0.37481,2667.6,2666.9,3.2078]
[1727417862532,2.34,2667.4,2666.9,3.2078]
[1727417862725,2.71484,2667.4,2666.9,3.2078]
[1727417862921,2.34,2667.4,2666.9,3.2078]
[1727417863626,2.71484,2667.4,2666.9,3.2078]
[1727417864726,0.37485,2667.3,2666.9,3.2078]
[1727417865533,2.71484,2667.4,2666.9,3.2078]
[1727417865934,2.34,2667.4,2666.9,3.2078]
[1727417866729,2.71484,2667.4,2666.9,3.2078]
[1727417867028,5.5478,2667.6,2666.9,3.2078]
[1727417867639,2.71481,2667.6,2666.9,3.2078]
[1727417869034,2.71481,2667.6,2666.4,0.7649]
[1727417869035,2.34,2667.1,2666.4,0.7649]
[1727417869230,1.1656,2667.0,2666.4,0.7649]
[1727417869831,1.1656,2667.0,2666.6,3.2078]
[1727417869832,0.7765,2667.0,2666.6,3.2078]
[1727417875640,0.7765,2667.0,2666.4,0.7649]
[1727417875849,0.7765,2667.0,2666.4,0.383]
[1727417876347,0.7765,2667.0,2666.6,3.2078]
[1727417878831,2.71488,2667.1,2666.6,3.2078]
[1727417878832,0.37489,2667.1,2666.6,3.2078]
[1727417879039,3.2078,2668.0,2667.0,2.34]
[1727417879237,3.2078,2668.0,2667.3,2.34]
[1727417879435,5.5478,2668.3,2667.5,3.2078]
[1727417879642,0.37473,2668.2,2667.5,3.2078]
[1727417880238,3.6158,2668.7,2667.7,2.34]
[1727417880437,2.34,2668.6,2667.8,3.2078]
[1727417881248,0.37472,2668.2,2667.8,3.2078]
[1727417881648,2.71474,2668.1,2667.5,3.2078]
[1727417881839,2.34,2668.1,2667.5,3.2078]
[1727417882444,2.71474,2668.1,2667.5,3.2078]
[1727417882642,2.34,2668.1,2667.5,3.2078]
[1727417882943,3.6158,2668.7,2668.0,2.34]
[1727417883149,0.37467,2668.6,2667.9,3.58256]
[1727417883349,3.6158,2668.7,2667.9,3.2078]
[1727417883350,3.99046,2668.7,2667.9,3.2078]
[1727417883643,0.37468,2668.5,2667.9,3.2078]
[1727417884147,0.3747,2668.4,2667.9,3.2078]
[1727417884348,2.71467,2668.6,2667.9,3.2078]
[1727417884547,0.37468,2668.5,2667.9,3.2078]
[1727417884748,0.3747,2668.4,2667.9,3.2078]
[1727417885956,0.37469,2668.5,2667.9,3.2078]
[1727417886152,2.34,2668.6,2667.9,3.58257]
[1727417886153,2.71467,2668.6,2667.9,3.58257]
[1727417886343,2.71467,2668.6,2668.2,3.2078]
[1727417886745,0.37469,2668.5,2668.2,3.2078]
[1727417887653,2.34,2668.6,2668.2,3.2078]
[1727417887844,0.37471,2668.4,2668.2,3.2078]
[1727417888244,0.37471,2668.4,2667.4,4.9115]
[1727417888245,2.34,2668.4,2667.9,3.2078]
[1727417888447,2.34,2668.4,2667.4,4.9115]
[1727417888448,0.37479,2667.8,2667.4,4.9115]
[1727417888644,0.3748,2667.7,2667.4,0.7805]
[1727417888842,0.3748,2667.7,2667.5,3.2078]
[1727417889060,5.5478,2667.9,2667.4,0.7805]
[1727417889244,0.37482,2667.5,2667.4,0.7805]
[1727417889441,0.37482,2667.6,2667.4,0.7805]
[1727417889655,0.3748,2667.7,2667.4,0.7805]
[1727417889956,0.37479,2667.8,2667.4,0.7805]
[1727417890258,1.15675,2668.1,2667.5,3.2078]
[1727417891458,0.782,2668.1,2667.6,2.34]
[1727417892052,0.782,2668.1,2667.8,3.2078]
[1727417892551,8.22246,2668.7,2667.8,3.2078]
[1727417892552,2.34,2668.7,2667.9,3.748]
[1727417892757,2.34,2668.7,2668.1,3.2078]
[1727417892758,0.4021,2668.6,2668.1,3.2078]
[1727417893073,0.77678,2668.6,2668.0,5.5478]
[1727417893243,0.4021,2668.6,2668.0,5.5478]
[1727417893450,0.4021,2668.6,2668.3,3.2078]
[1727417893649,7.2858,2669.0,2668.4,2.34]
[1727417893953,0.37462,2669.0,2668.6,3.2078]
[1727417894749,0.3746,2669.1,2668.6,3.2078]
[1727417894956,2.7421,2669.2,2668.6,3.2078]
[1727417895147,2.34,2669.2,2668.6,3.2078]
[1727417895349,3.21180549,2669.8,2668.9,5.5478]
[1727417895546,0.00400549,2669.8,2669.5,3.2078]
[1727417895746,0.2,2670.0,2669.7,5.5478]
[1727417896051,0.2,2670.0,2669.6,0.4058]
[1727417896457,0.57448,2670.0,2669.6,0.4058]
[1727417896650,2.71449,2669.9,2669.2,3.2078]
[1727417896845,2.34,2669.9,2669.2,3.2078]
[1727417897049,3.08319,2669.9,2669.2,3.2078]
[1727417897244,2.7087,2669.9,2669.2,3.2078]
[1727417897449,2.34,2669.5,2669.2,3.2078]
[1727417897650,0.2,2670.0,2669.2,2.34]
[1727417897853,2.34,2669.8,2669.3,3.2078]
[1727417898047,0.37451,2669.7,2669.3,3.2078]
[1727417898248,2.34,2669.6,2669.3,3.2078]
[1727417898548,2.34,2669.6,2669.1,3.2078]
[1727417898549,2.7378,2669.6,2669.1,3.2078]
[1727417898747,0.37458,2669.2,2668.8,3.2078]
[1727417898948,2.71456,2669.4,2668.5,5.5478]
[1727417899158,2.34,2669.4,2668.5,5.5478]
[1727417899456,0.3978,2669.6,2669.1,3.2078]
[1727417899646,0.3978,2669.6,2669.2,2.34]
[1727417899850,0.3978,2669.6,2669.4,3.2078]
[1727417900354,0.3978,2669.6,2669.5,3.7464]
[1727417900844,0.2,2670.0,2669.5,3.7464]
[1727417901049,0.3802,2669.9,2669.4,3.2078]
[1727417901454,0.75469,2669.9,2669.4,3.2078]
[1727417901662,0.3802,2669.9,2669.4,3.2078]
[1727417901961,0.37451,2669.8,2669.4,3.2078]
[1727417902458,0.37451,2669.7,2669.4,3.2078]
[1727417902648,0.3802,2669.9,2669.4,3.2078]
[1727417903262,0.75469,2669.9,2669.4,3.2078]
[1727417904054,0.3802,2669.9,2669.4,3.2078]
[1727417904260,0.37451,2669.8,2669.4,3.2078]
[1727417904551,0.3802,2669.9,2669.4,3.2078]
[1727417904957,0.3745,2669.8,2669.4,3.2078]
[1727417905759,0.3802,2669.9,2669.4,3.2078]
[1727417905760,0.37453,2669.6,2669.4,3.2078]
[1727417905961,0.37454,2669.5,2669.1,3.2078]
[1727417906358,2.34,2669.8,2669.1,6.9542]
[1727417906560,4.52424,2669.9,2668.8,5.922]
[1727417906561,0.37458,2669.3,2668.8,5.922]
[1727417906752,0.3953,2669.2,2668.8,5.922]
[1727417907056,0.3849,2669.5,2669.1,3.2078]
[1727417907366,0.3953,2669.9,2669.2,2.34]
[1727417907554,0.3745,2669.8,2669.2,2.34]
[1727417907753,0.37451,2669.7,2669.2,2.34]
[1727417907969,0.7802,2669.9,2669.4,3.2078]
[1727417908259,0.37452,2669.7,2669.4,3.2078]
[1727417908558,0.7802,2669.9,2669.1,3.2078]
[1727417908559,3.2078,2669.8,2669.1,3.2078]
[1727417908762,0.4028,2669.7,2669.1,3.2078]
[1727417908953,0.37455,2669.5,2669.1,3.2078]
[1727417909154,0.4028,2669.7,2669.0,3.2078]
[1727417909856,0.37454,2669.6,2669.0,5.5478]
[1727417910052,0.77732,2669.7,2669.0,5.5478]
[1727417910460,0.4028,2669.7,2669.0,5.5478]
[1727417910868,0.77732,2669.7,2669.0,5.5478]
[1727417911171,0.4028,2669.7,2669.0,5.5478]
[1727417911463,0.37455,2669.5,2669.0,5.5478]
[1727417911651,0.4028,2669.7,2669.0,5.5478]
[1727417911860,0.4028,2669.7,2668.8,2.7142]
[1727417912160,0.37455,2669.5,2669.0,3.2078]
[1727417912356,0.37456,2669.4,2669.0,3.2078]
[1727417912665,0.37455,2669.5,2669.0,3.2078]
[1727417912861,0.77732,2669.7,2669.0,5.5478]
[1727417913364,0.77732,2669.7,2669.1,0.3782]
[1727417913365,0.4028,2669.7,2669.1,0.3782]
[1727417913859,0.7802,2669.9,2669.2,2.34]
[1727417914060,0.7802,2669.9,2669.2,5.5478]
[1727417914267,1.15469,2669.9,2669.2,5.5478]
[1727417914865,0.7802,2669.9,2669.2,5.5478]
[1727417915167,0.37451,2669.8,2669.2,5.5478]
[1727417915367,3.1202,2669.9,2669.2,3.2078]
[1727417915569,0.37455,2669.5,2669.1,0.3782]
[1727417915769,3.2078,2669.8,2669.1,0.3782]
[1727417915968,0.37455,2669.5,2669.1,0.3782]
[1727417916166,0.37454,2669.6,2669.1,0.3782]
[1727417916366,0.37452,2669.7,2669.1,3.586]
[1727417916768,3.58231,2669.8,2669.2,2.34]
[1727417916972,0.37452,2669.7,2669.2,2.34]
[1727417917567,0.37453,2669.6,2669.2,2.34]
[1727417917869,0.7802,2669.9,2669.1,3.586]
[1727417917870,0.37454,2669.5,2669.1,3.586]
[1727417918071,0.37453,2669.6,2669.1,0.3782]
[1727417918276,0.37453,2669.6,2669.1,3.586]
[1727417918473,0.37452,2669.7,2669.1,3.586]
[1727417919076,0.37453,2669.6,2669.1,3.586]
[1727417919278,0.37452,2669.7,2669.1,3.586]
[1727417919978,3.2078,2669.8,2669.1,3.586]
[1727417919979,3.58231,2669.8,2669.1,3.586]
[1727417920275,1.15469,2669.9,2669.2,2.34]
[1727417920474,0.7802,2669.9,2669.2,2.34]
[1727417920871,3.988,2669.9,2669.2,2.34]
[1727417921477,4.36249,2669.9,2669.2,2.34]
[1727417921786,0.3745,2669.8,2669.2,2.34]
[1727417922076,0.37452,2669.7,2669.2,2.34]
[1727417922380,3.988,2669.9,2669.1,0.3782]
[1727417922381,0.37453,2669.6,2669.1,0.3782]
[1727417922585,0.37454,2669.5,2669.1,3.586]
[1727417922773,0.37453,2669.6,2669.1,3.586]
[1727417923574,6.328,2669.9,2669.1,3.586]
[1727417923778,0.37454,2669.6,2669.1,3.586]
[1727417924384,2.34,2669.6,2669.1,3.2078]
[1727417924677,3.6055,2669.5,2668.8,3.582]
[1727417924877,0.37458,2669.3,2668.8,3.582]
[1727417925075,0.3883,2669.2,2668.8,3.582]
[1727417926778,0.3883,2669.2,2668.9,2.34]
[1727417926984,3.2078,2669.6,2668.9,2.34]
[1727417926985,0.37454,2669.6,2669.1,3.2078]
[1727417927185,0.37452,2669.7,2669.1,3.2078]
[1727417927774,0.3883,2669.8,2669.1,3.2078]
[1727417927775,0.76281,2669.8,2669.1,3.2078]
[1727417927987,0.3883,2669.8,2669.2,2.34]
[1727417928173,0.7628,2669.8,2669.2,2.34]
[1727417928794,0.3883,2669.8,2669.2,2.34]
[1727417929488,0.3883,2669.8,2669.4,5.5478]
[1727417933091,0.5738,2670.0,2669.4,2.34]
[1727417933092,0.2,2670.0,2669.4,2.34]
[1727417933295,0.95667,2670.0,2669.4,2.34]
[1727417933604,0.95667,2670.0,2669.6,3.2078]
[1727417934498,0.5822,2670.0,2669.4,5.9533]
[1727417934699,0.95667,2670.0,2669.4,5.9533]
[1727417935405,0.5822,2670.0,2669.4,5.9533]
[1727417935705,0.95667,2670.0,2669.5,0.3866]
[1727417936001,0.3745,2669.9,2669.5,0.3866]
[1727417936208,0.3745,2669.9,2669.4,3.6133]
[1727417936803,2.9222,2670.0,2669.4,0.4055]
[1727417937002,0.37449,2669.9,2669.4,3.6133]
[1727417937304,3.29668,2670.0,2669.4,3.6133]
[1727417937504,0.37449,2669.9,2669.4,3.6133]
[1727417937703,0.3745,2669.8,2669.4,3.2078]
[1727417938323,6.13,2670.0,2669.4,3.2078]
[1727417938324,0.37451,2669.7,2669.4,3.2078]
[1727417938705,0.37451,2669.8,2669.4,3.2078]
[1727417939003,0.37451,2669.7,2669.4,3.2078]
[1727417939209,0.37451,2669.7,2669.2,3.1342]
[1727417939506,2.9222,2670.0,2669.4,3.2078]
[1727417939803,0.37451,2669.7,2669.4,3.2078]
[1727417940005,2.9222,2670.0,2669.4,3.2078]
[1727417940508,0.37451,2669.8,2669.4,3.2078]
[1727417940701,2.9222,2670.0,2669.4,3.2078]
[1727417940909,0.95668,2670.0,2669.4,5.5478]
[1727417941304,0.37452,2669.7,2669.4,3.2078]
[1727417941804,9.2934,2669.6,2669.0,3.2078]